fUSD/lending_fUSD_20250702
["ID","MTS","AMOUNT","RATE_DAILY","PERIOD"]
[368969372,1751417440158,-896.99,0.00016438,2]
[368969374,1751417440167,-2273.93,0.00016438,2]
[368969376,1751417440177,-367.39131361,0.00016438,2]
[368969378,1751417440187,-490.0,0.00016438,2]
[368969380,1751417440196,-490.0,0.00016438,2]
[368969382,1751417440206,-490.0,0.00016438,2]
[368969385,1751417440216,-490.0,0.00016438,2]
[368969386,1751417440225,-1677.14,0.00016438,2]
[368969388,1751417440235,-621.96,0.00016438,2]
[368969391,1751417440244,-490.0,0.00016438,2]
[368969393,1751417440254,-490.0,0.00016438,2]
[368969394,1751417440264,-541.54,0.00016438,2]
[368969396,1751417440273,-490.0,0.00016438,2]
[368969398,1751417440283,-490.0,0.00016438,2]
[368969400,1751417440292,-490.0,0.00016438,2]
[368969402,1751417440302,-490.0,0.00016438,2]
[368969404,1751417440312,-490.0,0.00016438,2]
[368969406,1751417440322,-490.0,0.00016438,2]
[368969408,1751417440331,-490.0,0.00016438,2]
[368969410,1751417440341,-1644.86,0.00016438,2]
[368969412,1751417440350,-490.0,0.00016438,2]
[368969414,1751417440360,-490.0,0.00016438,2]
[368969416,1751417440369,-286.4,0.00016438,2]
[368969418,1751417440379,-750.46,0.00016438,2]
[368969420,1751417440389,-2743.0,0.00016438,2]
[368969421,1751417440398,-490.0,0.00016438,2]
[368969422,1751417440407,-490.0,0.00016438,2]
[368969423,1751417440417,-490.0,0.00016438,2]
[368969424,1751417440426,-490.0,0.00016438,2]
[368969425,1751417440436,-490.0,0.00016438,2]
[368969426,1751417440445,-490.0,0.00016438,2]
[368969427,1751417440461,-490.0,0.00016438,2]
[368969428,1751417440470,-490.0,0.00016438,2]
[368969429,1751417440480,-490.0,0.00016438,2]
[368969431,1751417440490,-490.0,0.00016438,2]
[368969433,1751417440499,-490.0,0.00016438,2]
[368969435,1751417440508,-582.62301977,0.00016438,2]
[368969437,1751417440518,-490.0,0.00016438,2]
[368969439,1751417440528,-572.51,0.00016438,2]
[368969441,1751417440537,-490.0,0.00016438,2]
[368969443,1751417440546,-490.0,0.00016438,2]
[368969445,1751417440555,-2731.1,0.00016438,2]
[368969447,1751417440565,-490.0,0.00016438,2]
[368969449,1751417440574,-490.0,0.00016438,2]
[368969451,1751417440584,-490.0,0.00016438,2]
[368969453,1751417440593,-490.0,0.00016438,2]
[368969455,1751417440604,-490.0,0.00016438,2]
[368969457,1751417440616,-490.0,0.00016438,2]
[368969459,1751417440625,-490.0,0.00016438,2]
[368969461,1751417440635,-1401.74,0.00016438,2]
[368969463,1751417440648,-490.0,0.00016438,2]
[368969465,1751417440664,-490.0,0.00016438,2]
[368969467,1751417440690,-672.02,0.00016438,2]
[368969469,1751417440700,-662.69,0.00016438,2]
[368969472,1751417440712,-490.0,0.00016438,2]
[368969474,1751417440723,-1563.01,0.00016438,2]
[368969476,1751417440735,-248.86984015,0.00016438,2]
[368969478,1751417440745,-490.0,0.00016438,2]
[368969480,1751417440757,-174.51,0.00016438,2]
[368969482,1751417440767,-490.0,0.00016438,2]
[368969484,1751417440782,-490.0,0.00016438,2]
[368969486,1751417440794,-490.0,0.00016438,2]
[368969488,1751417440803,-490.0,0.00016438,2]
[368969490,1751417440813,-489.32,0.00016438,2]
[368969492,1751417440823,-13665.57,0.00016438,2]
[368969494,1751417440832,-490.0,0.00016438,2]
[368969496,1751417440842,-490.0,0.00016438,2]
[368969498,1751417440852,-490.0,0.00016438,2]
[368969500,1751417440862,-490.0,0.00016438,2]
[368969502,1751417440871,-490.0,0.00016438,2]
[368969504,1751417440883,-490.0,0.00016438,2]
[368969506,1751417440894,-586.98,0.00016438,2]
[368969508,1751417440903,-490.0,0.00016438,2]
[368969510,1751417440913,-490.0,0.00016438,2]
[368969512,1751417440928,-3572.27,0.00016438,2]
[368969514,1751417440938,-502.81,0.00016438,2]
[368969516,1751417440947,-490.0,0.00016438,2]
[368969518,1751417440957,-799.63,0.00016438,2]
[368969521,1751417440967,-296.21685443,0.00016438,2]
[368969522,1751417440976,-500.0,0.00016438,2]
[368969524,1751417440985,-490.0,0.00016438,2]
[368969526,1751417440995,-916.93,0.00016438,2]
[368969528,1751417441005,-490.0,0.00016438,2]
[368969531,1751417441015,-490.0,0.00016438,2]
[368969533,1751417441024,-509.45,0.00016438,2]
[368969535,1751417441034,-490.0,0.00016438,2]
[368969536,1751417441043,-490.0,0.00016438,2]
[368969538,1751417441053,-587.66,0.00016438,2]
[368969540,1751417441063,-490.0,0.00016438,2]
[368969543,1751417441072,-490.0,0.00016438,2]
[368969545,1751417441082,-490.0,0.00016438,2]
[368969546,1751417441091,-490.0,0.00016438,2]
[368969548,1751417441101,-490.0,0.00016438,2]
[368969549,1751417441114,-490.0,0.00016438,2]
[368969552,1751417441123,-2164.63,0.00016438,2]
[368969554,1751417441133,-537.28,0.00016438,2]
[368969555,1751417441143,-490.0,0.00016438,2]
[368969558,1751417441152,-490.0,0.00016438,2]
[368969559,1751417441161,-490.0,0.00016438,2]
[368969561,1751417441171,-490.0,0.00016438,2]
[368969564,1751417441181,-490.0,0.00016438,2]
[368969566,1751417441191,-493.21,0.00016438,2]
[368969568,1751417441201,-819.37,0.00016438,2]
[368969570,1751417441210,-490.0,0.00016438,2]
[368969571,1751417441220,-490.0,0.00016438,2]
[368969573,1751417441229,-490.0,0.00016438,2]
[368969575,1751417441240,-802.53,0.00016438,2]
[368969576,1751417441249,-490.0,0.00016438,2]
[368969578,1751417441258,-490.0,0.00016438,2]
[368969580,1751417441268,-2401.8,0.00016438,2]
[368969582,1751417441278,-500.0,0.00016438,2]
[368969584,1751417441287,-490.0,0.00016438,2]
[368969586,1751417441296,-515.88,0.00016438,2]
[368969588,1751417441305,-490.0,0.00016438,2]
[368969590,1751417441315,-490.0,0.00016438,2]
[368969592,1751417441325,-490.0,0.00016438,2]
[368969594,1751417441334,-1901.26,0.00016438,2]
[368969596,1751417441343,-619.11,0.00016438,2]
[368969597,1751417441353,-490.0,0.00016438,2]
[368969599,1751417441362,-490.0,0.00016438,2]
[368969601,1751417441372,-490.0,0.00016438,2]
[368969603,1751417441380,-500.34,0.00016438,2]
[368969605,1751417441390,-490.0,0.00016438,2]
[368969607,1751417441399,-490.0,0.00016438,2]
[368969609,1751417441408,-490.0,0.00016438,2]
[368969611,1751417441417,-490.0,0.00016438,2]
[368969613,1751417441426,-5863.67,0.00016438,2]
[368969615,1751417441436,-150.0,0.00016438,2]
[368969617,1751417441446,-490.0,0.00016438,2]
[368969619,1751417441456,-490.0,0.00016438,2]
[368969621,1751417441465,-490.0,0.00016438,2]
[368969623,1751417441475,-490.0,0.00016438,2]
[368969625,1751417441484,-795.79,0.00016438,2]
[368969627,1751417441493,-490.0,0.00016438,2]
[368969628,1751417441504,-490.0,0.00016438,2]
[368969630,1751417441513,-490.0,0.00016438,2]
[368969632,1751417441522,-490.0,0.00016438,2]
[368969634,1751417441532,-270.45998495,0.00016438,2]
[368969636,1751417441541,-150.0,0.00016438,2]
[368969638,1751417441551,-1010.0,0.00016438,2]
[368969640,1751417441560,-490.0,0.00016438,2]
[368969642,1751417441569,-490.0,0.00016438,2]
[368969644,1751417441578,-585.42,0.00016438,2]
[368969646,1751417441587,-490.0,0.00016438,2]
[368969648,1751417441597,-384.21,0.00016438,2]
[368969650,1751417441606,-490.0,0.00016438,2]
[368969652,1751417441615,-490.0,0.00016438,2]
[368969654,1751417441624,-490.0,0.00016438,2]
[368969656,1751417441634,-490.0,0.00016438,2]
[368969658,1751417441644,-490.0,0.00016438,2]
[368969660,1751417441654,-512.57,0.00016438,2]
[368969662,1751417441664,-490.0,0.00016438,2]
[368969664,1751417441674,-1401.1,0.00016438,2]
[368969666,1751417441684,-490.0,0.00016438,2]
[368969668,1751417441693,-490.0,0.00016438,2]
[368969670,1751417441703,-490.0,0.00016438,2]
[368969672,1751417441712,-639.96,0.00016438,2]
[368969674,1751417441721,-490.0,0.00016438,2]
[368969676,1751417441731,-510.11779806,0.00016473,2]
[368969678,1751417441740,-160.59841573,0.00016473,2]
[368969680,1751417441749,-159.83261821,0.00016473,2]
[368969682,1751417441759,-159.83229691,0.00016473,2]
[368969684,1751417441769,-500.0,0.00016473,2]
[368969686,1751417441782,-500.0,0.00016473,2]
[368969688,1751417441793,-1891.35457529,0.00016497,2]
[368969690,1751417441802,-295.0,0.00016499,2]
[368969692,1751417441811,-835.99020467,0.000165,2]
[368969694,1751417441822,-2500.0,0.000165,2]
[368969696,1751417441832,-2500.0,0.000165,2]
[368969698,1751417441842,-2500.0,0.000165,2]
[368969700,1751417441852,-295.0,0.00016501,2]
[368969702,1751417441861,-168.0,0.00016516,2]
[368969703,1751417441870,-5593.65225855,0.0001652,2]
[368969705,1751417441880,-194.198,0.0001655,2]
[368969707,1751417441889,-2457.365,0.0001655,2]
[368969709,1751417441898,-446.45,0.00016551,2]
[368969711,1751417441907,-344.42,0.00016551,2]
[368969713,1751417441917,-922.16,0.00016551,2]
[368969715,1751417441925,-355.8,0.00016551,2]
[368969717,1751417441935,-152.161734,0.00016551,2]
[368969719,1751417441944,-165.12617,0.00016551,2]
[368969721,1751417441953,-151.0,0.00016551,2]
[368969723,1751417441963,-200.0,0.00016577,2]
[368969725,1751417441972,-200.0,0.00016578,2]
[368969727,1751417441982,-2080.70679357,0.000166,2]
[368969729,1751417441991,-151.0,0.000166,2]
[368969731,1751417442000,-151.0,0.000166,2]
[368969732,1751417442009,-1000.0,0.000166,2]
[368969734,1751417442019,-242.85510285,0.00016604,2]
[368969736,1751417442028,-165.54860066,0.00016606,2]
[368969738,1751417442038,-176.41324,0.00016607,2]
[368969740,1751417442048,-162.66463904,0.00016612,2]
[368969742,1751417442058,-178.16558057,0.00016612,2]
[368969744,1751417442067,-358.0,0.00016625,2]
[368969746,1751417442076,-500.0,0.00016627,2]
[368969748,1751417442085,-278.68304058,0.00016627,2]
[368969750,1751417442094,-500.0,0.00016627,2]
[368969752,1751417442103,-500.0,0.00016628,2]
[368969754,1751417442112,-500.0,0.00016628,2]
[368969756,1751417442129,-500.0,0.00016628,2]
[368969758,1751417442138,-500.0,0.00016628,2]
[368969760,1751417442147,-500.0,0.00016628,2]
[368969762,1751417442157,-500.0,0.00016628,2]
[368969763,1751417442166,-500.0,0.00016628,2]
[368969765,1751417442178,-500.0,0.00016628,2]
[368969767,1751417442188,-500.0,0.00016628,2]
[368969769,1751417442197,-500.0,0.00016628,2]
[368969771,1751417442206,-500.0,0.00016628,2]
[368969773,1751417442215,-500.0,0.00016628,2]
[368969775,1751417442224,-500.0,0.00016628,2]
[368969777,1751417442233,-500.0,0.00016628,2]
[368969779,1751417442243,-500.0,0.00016628,2]
[368969781,1751417442252,-500.0,0.00016628,2]
[368969783,1751417442265,-500.0,0.00016628,2]
[368969785,1751417442275,-500.0,0.00016628,2]
[368969787,1751417442284,-500.0,0.00016628,2]
[368969789,1751417442293,-500.0,0.00016628,2]
[368969791,1751417442303,-500.0,0.00016628,2]
[368969793,1751417442312,-500.0,0.00016628,2]
[368969795,1751417442321,-500.0,0.00016628,2]
[368969797,1751417442330,-500.0,0.00016628,2]
[368969799,1751417442341,-500.0,0.00016628,2]
[368969801,1751417442350,-500.0,0.00016628,2]
[368969803,1751417442358,-500.0,0.00016628,2]
[368969805,1751417442367,-500.0,0.00016628,2]
[368969807,1751417442377,-500.0,0.00016628,2]
[368969809,1751417442386,-500.0,0.00016628,2]
[368969811,1751417442396,-500.0,0.00016628,2]
[368969813,1751417442405,-500.0,0.00016628,2]
[368969815,1751417442414,-500.0,0.00016628,2]
[368969817,1751417442423,-500.0,0.00016628,2]
[368969819,1751417442433,-500.0,0.00016628,2]
[368969820,1751417442442,-500.0,0.00016628,2]
[368969821,1751417442452,-500.0,0.00016628,2]
[368969822,1751417442461,-500.0,0.00016628,2]
[368969823,1751417442470,-500.0,0.00016628,2]
[368969824,1751417442479,-500.0,0.00016628,2]
[368969825,1751417442489,-500.0,0.00016628,2]
[368969826,1751417442498,-500.0,0.00016628,2]
[368969827,1751417442507,-500.0,0.00016628,2]
[368969828,1751417442516,-500.0,0.00016628,2]
[368969829,1751417442525,-500.0,0.00016628,2]
[368969830,1751417442534,-500.0,0.00016628,2]
[368969831,1751417442544,-500.0,0.00016628,2]
[368969832,1751417442553,-500.0,0.00016628,2]
[368969834,1751417442562,-500.0,0.00016628,2]
[368969836,1751417442571,-500.0,0.00016628,2]
[368969838,1751417442582,-500.0,0.00016628,2]
[368969840,1751417442591,-500.0,0.00016628,2]
[368969842,1751417442600,-500.0,0.00016628,2]
[368969844,1751417442608,-500.0,0.00016628,2]
[368969846,1751417442617,-500.0,0.00016628,2]
[368969848,1751417442627,-500.0,0.00016628,2]
[368969850,1751417442636,-500.0,0.00016628,2]
[368969852,1751417442645,-500.0,0.00016628,2]
[368969854,1751417442655,-500.0,0.00016628,2]
[368969856,1751417442664,-500.0,0.00016628,2]
[368969858,1751417442674,-500.0,0.00016628,2]
[368969859,1751417442683,-500.0,0.00016628,2]
[368969861,1751417442692,-500.0,0.00016628,2]
[368969864,1751417442700,-500.0,0.00016628,2]
[368969867,1751417442710,-500.0,0.00016628,2]
[368969870,1751417442720,-500.0,0.00016628,2]
[368969872,1751417442729,-500.0,0.00016628,2]
[368969874,1751417442738,-500.0,0.00016628,2]
[368969876,1751417442747,-500.0,0.00016628,2]
[368969878,1751417442756,-500.0,0.00016628,2]
[368969880,1751417442765,-500.0,0.00016628,2]
[368969882,1751417442775,-500.0,0.00016628,2]
[368969884,1751417442787,-500.0,0.00016628,2]
[368969886,1751417442796,-500.0,0.00016628,2]
[368969888,1751417442805,-500.0,0.00016628,2]
[368969890,1751417442815,-500.0,0.00016628,2]
[368969892,1751417442826,-500.0,0.00016628,2]
[368969894,1751417442835,-500.0,0.00016628,2]
[368969896,1751417442844,-500.0,0.00016628,2]
[368969898,1751417442856,-500.0,0.00016628,2]
[368969900,1751417442865,-500.0,0.00016628,2]
[368969902,1751417442874,-500.0,0.00016628,2]
[368969904,1751417442883,-500.0,0.00016628,2]
[368969906,1751417442893,-500.0,0.00016628,2]
[368969908,1751417442902,-500.0,0.00016628,2]
[368969910,1751417442910,-500.0,0.00016628,2]
[368969912,1751417442919,-500.0,0.00016628,2]
[368969914,1751417442928,-500.0,0.00016628,2]
[368969916,1751417442937,-500.0,0.00016628,2]
[368969918,1751417442946,-500.0,0.00016628,2]
[368969920,1751417442955,-500.0,0.00016628,2]
[368969922,1751417442965,-500.0,0.00016628,2]
[368969924,1751417442974,-500.0,0.00016628,2]
[368969926,1751417442983,-500.0,0.00016628,2]
[368969928,1751417442992,-500.0,0.00016628,2]
[368969929,1751417443001,-500.0,0.00016628,2]
[368969951,1751417443176,-500.0,0.00016628,2]
[368969954,1751417443212,-500.0,0.00016628,2]
[368969956,1751417443223,-500.0,0.00016628,2]
[368969958,1751417443232,-500.0,0.00016628,2]
[368969960,1751417443241,-151.0,0.00016628,2]
[368969962,1751417443251,-154.357312,0.00016628,2]
[368969964,1751417443260,-151.0,0.00016628,2]
[368969966,1751417443270,-227.042132,0.00016628,2]
[368969968,1751417443279,-151.0,0.00016628,2]
[368969970,1751417443289,-151.0,0.00016628,2]
[368969972,1751417443298,-151.0,0.00016628,2]
[368969974,1751417443307,-253.348339,0.00016628,2]
[368969976,1751417443317,-253.348339,0.00016628,2]
[368969979,1751417443326,-153.669861,0.00016628,2]
[368969982,1751417443335,-151.0,0.00016628,2]
[368969985,1751417443344,-964.0,0.00016654,2]
[368969987,1751417443354,-1891.35457529,0.00016655,2]
[368969989,1751417443363,-994.12352654,0.0001666,2]
[368969991,1751417443373,-152.419746,0.0001668,2]
[368969993,1751417443382,-151.0,0.0001668,2]
[368969994,1751417443392,-151.0,0.0001668,2]
[368969996,1751417443402,-152.147004,0.0001668,2]
[368969998,1751417443411,-151.0,0.0001668,2]
[368970000,1751417443421,-151.0,0.0001668,2]
[368970002,1751417443430,-151.0,0.0001668,2]
[368970004,1751417443439,-151.0,0.0001668,2]
[368970005,1751417443449,-592.550363,0.0001668,2]
[368970007,1751417443458,-592.550363,0.0001668,2]
[368970009,1751417443467,-1166.640656,0.0001668,2]
[368970011,1751417443477,-1166.640656,0.0001668,2]
[368970013,1751417443486,-151.0,0.0001668,2]
[368970015,1751417443495,-3173.90991,0.0001668,2]
[368970017,1751417443505,-13106.98402794,0.0001668,2]
[368970019,1751417443514,-31059.1,0.000167,2]
[368970021,1751417443524,-151.0,0.000167,2]
[368970023,1751417443534,-151.726846,0.000167,2]
[368970025,1751417443543,-151.0,0.000167,2]
[368970027,1751417443553,-800.0,0.000167,6]
[368970029,1751417443563,-151.0,0.00016704,2]
[368970031,1751417443572,-162.516029,0.00016704,2]
[368970033,1751417443581,-151.0,0.00016704,2]
[368970035,1751417443590,-151.0,0.00016705,2]
[368970037,1751417443599,-151.0,0.00016705,2]
[368970039,1751417443608,-172.710728,0.00016705,2]
[368970041,1751417443617,-1000.0,0.00016705,2]
[368970042,1751417443627,-151.0,0.00016705,2]
[368970044,1751417443637,-153.590842,0.00016705,2]
[368970046,1751417443646,-151.0,0.00016705,2]
[368970048,1751417443655,-151.0,0.00016705,2]
[368970050,1751417443665,-151.0,0.00016705,2]
[368970052,1751417443675,-151.0,0.00016705,2]
[368970054,1751417443684,-592.550363,0.00016705,2]
[368970056,1751417443693,-592.550363,0.00016705,2]
[368970058,1751417443702,-1166.640656,0.00016705,2]
[368970060,1751417443712,-1166.640656,0.00016705,2]
[368970062,1751417443722,-253.348339,0.00016705,2]
[368970064,1751417443731,-253.348339,0.00016705,2]
[368970066,1751417443741,-151.0,0.00016705,2]
[368970068,1751417443752,-11616.72753276,0.00016705,2]
[368970070,1751417443761,-19014.00516004,0.00016705,2]
[368970073,1751417443789,-41247.5467623,0.00016705,2]
[368970076,1751417443801,-205580.56980217,0.00016705,2]
[368970078,1751417443811,-151.0,0.00016706,2]
[368970080,1751417443822,-151.0,0.00016706,2]
[368970082,1751417443831,-151.0,0.00016706,2]
[368970083,1751417443841,-151.0,0.00016706,2]
[368970085,1751417443854,-151.0,0.00016706,2]
[368970087,1751417443863,-151.0,0.00016706,2]
[368970089,1751417443873,-151.0,0.00016706,2]
[368970092,1751417443882,-154.765231,0.00016706,2]
[368970094,1751417443893,-151.0,0.00016706,2]
[368970095,1751417443903,-151.0,0.00016706,2]
[368970097,1751417443913,-155.607681,0.00016706,2]
[368970099,1751417443923,-151.0,0.00016706,2]
[368970101,1751417443933,-151.0,0.00016706,2]
[368970103,1751417443942,-151.0,0.00016706,2]
[368970105,1751417443952,-151.0,0.00016706,2]
[368970107,1751417443962,-151.0,0.00016706,2]
[368970109,1751417443971,-151.0,0.00016706,2]
[368970111,1751417443980,-194.7763,0.00016706,2]
[368970113,1751417443990,-151.0,0.00016706,2]
[368970115,1751417443999,-152.965052,0.00016706,2]
[368970117,1751417444009,-151.0,0.00016706,2]
[368970119,1751417444018,-151.0,0.00016706,2]
[368970121,1751417444028,-151.0,0.00016706,2]
[368970123,1751417444038,-151.0,0.00016706,2]
[368970125,1751417444048,-151.0,0.00016706,2]
[368970127,1751417444058,-152.23737,0.00016706,2]
[368970129,1751417444067,-151.0,0.00016706,2]
[368970131,1751417444077,-154.81563,0.00016706,2]
[368970133,1751417444087,-151.0,0.00016706,2]
[368970135,1751417444096,-151.0,0.00016706,2]
[368970137,1751417444105,-151.0,0.00016706,2]
[368970139,1751417444114,-151.0,0.00016706,2]
[368970141,1751417444124,-151.0,0.00016706,2]
[368970143,1751417444133,-151.0,0.00016706,2]
[368970145,1751417444142,-207.275299,0.00016706,2]
[368970147,1751417444151,-151.0,0.00016706,2]
[368970149,1751417444160,-568.74107,0.00016706,2]
[368970151,1751417444170,-568.74107,0.00016706,2]
[368970153,1751417444180,-568.74107,0.00016706,2]
[368970155,1751417444189,-568.74107,0.00016706,2]
[368970157,1751417444198,-151.0,0.00016706,2]
[368970159,1751417444208,-151.0,0.00016706,2]
[368970161,1751417444218,-151.0,0.00016706,2]
[368970162,1751417444227,-1213.346159,0.00016706,2]
[368970164,1751417444237,-1213.346159,0.00016706,2]
[368970166,1751417444246,-1213.346159,0.00016706,2]
[368970168,1751417444257,-1213.346159,0.00016706,2]
[368970170,1751417444266,-151.0,0.00016706,2]
[368970172,1751417444276,-151.0,0.00016706,2]
[368970174,1751417444287,-151.0,0.00016706,2]
[368970177,1751417444297,-151.0,0.00016706,2]
[368970178,1751417444307,-151.0,0.00016706,2]
[368970179,1751417444316,-151.0,0.00016706,2]
[368970180,1751417444325,-151.0,0.00016706,2]
[368970181,1751417444335,-151.0,0.00016706,2]
[368970182,1751417444345,-151.0,0.00016706,2]
[368970183,1751417444355,-151.0,0.00016706,2]
[368970184,1751417444366,-287.058263,0.00016706,2]
[368970185,1751417444375,-287.058263,0.00016706,2]
[368970186,1751417444385,-287.058263,0.00016706,2]
[368970187,1751417444394,-287.058263,0.00016706,2]
[368970188,1751417444404,-165.508214,0.00016706,2]
[368970189,1751417444413,-151.0,0.00016706,2]
[368970191,1751417444423,-151.0,0.00016706,2]
[368970193,1751417444432,-151.0,0.00016706,2]
[368970195,1751417444442,-151.0,0.00016706,2]
[368970197,1751417444452,-18226.5684288,0.00016706,2]
[368970199,1751417444461,-110731.47534572,0.00016706,2]
[368970260,1751417445042,-490.0,0.00016438,2]
[368970262,1751417445052,-490.0,0.00016438,2]
[368970264,1751417445062,-882.86172562,0.00016706,2]
[368970266,1751417445073,-6180.53607121,0.00016706,2]
[368970268,1751417445089,-80816.63422399,0.00016706,2]
[368970273,1751417445123,-500.0,0.00016706,2]
[368970352,1751417445731,-490.0,0.00016438,2]
[368970355,1751417445741,-16412.42102896,0.00016706,2]
[368970358,1751417445751,-151.0,0.00016706,2]
[368970361,1751417445760,-151.0,0.00016706,2]
[368970364,1751417445769,-151.0,0.00016706,2]
[368970367,1751417445782,-151.0,0.00016706,2]
[368970370,1751417445791,-592.550363,0.00016706,2]
[368970372,1751417445800,-592.550363,0.00016706,2]
[368970374,1751417445809,-1166.640656,0.00016706,2]
[368970376,1751417445818,-1166.640656,0.00016706,2]
[368970379,1751417445829,-151.0,0.00016706,2]
[368970382,1751417445839,-151.0,0.00016706,2]
[368970385,1751417445849,-151.0,0.00016706,2]
[368970387,1751417445858,-253.348339,0.00016706,2]
[368970389,1751417445867,-151.0,0.00016706,2]
[368970392,1751417445877,-151.0,0.00016706,2]
[368970394,1751417445888,-253.348339,0.00016706,2]
[368970396,1751417445897,-7319.8602926,0.00016706,2]
[368970398,1751417445906,-151.0,0.00016706,2]
[368970400,1751417445916,-151.0,0.00016706,2]
[368970402,1751417445925,-151.0,0.00016707,2]
[368970404,1751417445935,-500.738536,0.00016709,2]
[368970406,1751417445945,-152.668938,0.00016709,2]
[368970408,1751417445954,-500.738536,0.00016709,2]
[368970410,1751417445963,-150.0,0.00016709,2]
[368970412,1751417445972,-150.0,0.00016709,2]
[368970414,1751417445982,-184.70858142,0.00016709,2]
[368970416,1751417445992,-500.0,0.0001671,2]
[368970418,1751417446001,-151.0,0.00016711,2]
[368970420,1751417446011,-151.0,0.00016711,2]
[368970421,1751417446020,-151.0,0.00016711,2]
[368970422,1751417446030,-154.53346,0.00016711,2]
[368970423,1751417446039,-151.74508,0.00016711,2]
[368970424,1751417446049,-151.0,0.00016711,2]
[368970425,1751417446059,-151.0,0.00016711,2]
[368970426,1751417446068,-228.589942,0.00016711,2]
[368970427,1751417446078,-228.589942,0.00016711,2]
[368970428,1751417446087,-151.0,0.00016711,2]
[368970430,1751417446097,-173.545628,0.00016711,2]
[368970432,1751417446106,-173.545628,0.00016711,2]
[368970434,1751417446116,-151.0,0.00016711,2]
[368970436,1751417446126,-151.0,0.00016711,2]
[368970438,1751417446135,-490.0,0.00016711,2]
[368970439,1751417446145,-490.0,0.00016711,2]
[368970441,1751417446155,-500.738536,0.00016711,2]
[368970443,1751417446164,-500.738536,0.00016711,2]
[368970445,1751417446174,-153.744259,0.00016711,2]
[368970447,1751417446183,-153.907321,0.00016711,2]
[368970449,1751417446193,-325.21484642,0.00016711,2]
[368970451,1751417446203,-494.3182991,0.00016711,2]
[368970453,1751417446213,-460.0,0.00016711,2]
[368970455,1751417446223,-280.313107,0.00016711,2]
[368970457,1751417446232,-490.0,0.00016711,2]
[368970459,1751417446242,-151.0,0.00016711,2]
[368970461,1751417446251,-151.0,0.00016711,2]
[368970463,1751417446261,-151.0,0.00016711,2]
[368970465,1751417446271,-151.0,0.00016711,2]
[368970467,1751417446280,-151.0,0.00016711,2]
[368970469,1751417446289,-490.0,0.00016711,2]
[368970471,1751417446300,-151.0,0.00016711,2]
[368970473,1751417446310,-490.0,0.00016711,2]
[368970475,1751417446320,-151.0,0.00016711,2]
[368970477,1751417446329,-176.542874,0.00016711,2]
[368970479,1751417446338,-151.0,0.00016711,2]
[368970481,1751417446348,-151.0,0.00016711,2]
[368970483,1751417446358,-151.0,0.00016711,2]
[368970485,1751417446366,-151.0,0.00016711,2]
[368970487,1751417446376,-300.0,0.00016711,2]
[368970489,1751417446385,-151.0,0.00016711,2]
[368970491,1751417446395,-160.758005,0.00016711,2]
[368970493,1751417446405,-153.597841,0.00016711,2]